[Event "Titled Tuesday Blitz August 15 Late 2023"]
[White "Merino Garcia, Rafael II"]
[Black "Vlassov, Nikolai"]
[WhiteFideId "2209128"]
[BlackFideId "4103360"]
[WhiteElo "2501"]
[BlackElo "2596"]
[Result "0-1"]
[Round "11"]
[TimeControl "180+1"]
[Date "2023.08.15"]
[WhiteClock "0:00:04"]
[BlackClock "0:00:04"]
[Board "42"]

1. d4 {[%clk 0:02:58]}  Nf6 {[%clk 0:02:59]} 2. Nf3 {[%clk 0:02:58]}  e6 {[%clk 0:02:59]} 3. g3 {[%clk 0:02:58]}  b5 {[%clk 0:02:59]} 4. Bg2 {[%clk 0:02:54]}  Bb7 {[%clk 0:02:58]} 5. O-O {[%clk 0:02:52]}  c5 {[%clk 0:02:59]} 6. a4 {[%clk 0:02:48]}  b4 {[%clk 0:02:58]} 7. Bg5 {[%clk 0:02:44]}  Na6 {[%clk 0:02:57]} 8. Nbd2 {[%clk 0:02:31]}  cxd4 {[%clk 0:02:56]} 9. Nxd4 {[%clk 0:02:30]}  Bxg2 {[%clk 0:02:56]} 10. Kxg2 {[%clk 0:02:31]}  Be7 {[%clk 0:02:56]} 11. N2b3 {[%clk 0:02:22]}  O-O {[%clk 0:02:55]} 12. Qd3 {[%clk 0:02:04]}  Qb6 {[%clk 0:02:51]} 13. e4 {[%clk 0:01:57]}  h6 {[%clk 0:02:46]} 14. Bf4 {[%clk 0:01:48]}  d5 {[%clk 0:02:29]} 15. e5 {[%clk 0:01:37]}  Ne4 {[%clk 0:02:29]} 16. Be3 {[%clk 0:01:38]}  Nac5 {[%clk 0:02:23]} 17. Qe2 {[%clk 0:01:30]}  Qa6 {[%clk 0:01:52]} 18. Qxa6 {[%clk 0:01:09]}  Nxa6 {[%clk 0:01:52]} 19. Nb5 {[%clk 0:01:04]}  Rfc8 {[%clk 0:01:46]} 20. Rac1 {[%clk 0:01:02]}  Nec5 {[%clk 0:01:43]} 21. Nxc5 {[%clk 0:00:59]}  Nxc5 {[%clk 0:01:36]} 22. a5 {[%clk 0:00:46]}  a6 {[%clk 0:01:33]} 23. Nd4 {[%clk 0:00:37]}  Nb7 {[%clk 0:01:26]} 24. Nb3 {[%clk 0:00:34]}  Bd8 {[%clk 0:01:21]} 25. Bb6 {[%clk 0:00:19]}  Bxb6 {[%clk 0:01:16]} 26. axb6 {[%clk 0:00:19]}  Rc6 {[%clk 0:01:16]} 27. Nd4 {[%clk 0:00:18]}  Rxb6 {[%clk 0:01:16]} 28. Ra1 {[%clk 0:00:16]}  a5 {[%clk 0:01:07]} 29. Ra2 {[%clk 0:00:12]}  Nc5 {[%clk 0:01:01]} 30. b3 {[%clk 0:00:09]}  f6 {[%clk 0:00:48]} 31. exf6 {[%clk 0:00:08]}  gxf6 {[%clk 0:00:48]} 32. Rfa1 {[%clk 0:00:09]}  e5 {[%clk 0:00:21]} 33. Nf5 {[%clk 0:00:05]}  Kf7 {[%clk 0:00:14]} 34. Rxa5 {[%clk 0:00:05]}  Rxa5 {[%clk 0:00:13]} 35. Rxa5 {[%clk 0:00:06]}  Rc6 {[%clk 0:00:13]} 36. Ra7+ {[%clk 0:00:06]}  Ke6 {[%clk 0:00:13]} 37. Ng7+ {[%clk 0:00:06]}  Kd6 {[%clk 0:00:11]} 38. Ne8+ {[%clk 0:00:06]}  Ke6 {[%clk 0:00:11]} 39. Ng7+ {[%clk 0:00:06]}  Kd6 {[%clk 0:00:11]} 40. Nf5+ {[%clk 0:00:07]}  Ke6 {[%clk 0:00:12]} 41. g4 {[%clk 0:00:07]}  Nd7 {[%clk 0:00:10]} 42. Nxh6 {[%clk 0:00:06]}  Rxc2 {[%clk 0:00:09]} 43. Rb7 {[%clk 0:00:07]}  d4 {[%clk 0:00:08]} 44. Rxb4 {[%clk 0:00:06]}  d3 {[%clk 0:00:09]} 45. Nf5 {[%clk 0:00:06]}  d2 {[%clk 0:00:08]} 46. Ne3 {[%clk 0:00:07]}  Rc3 {[%clk 0:00:07]} 47. Nd1 {[%clk 0:00:06]}  Rc1 {[%clk 0:00:07]} 48. Ne3 {[%clk 0:00:06]}  Re1 {[%clk 0:00:07]} 49. Nc2 {[%clk 0:00:06]}  d1=Q {[%clk 0:00:06]} 50. Rc4 {[%clk 0:00:04]}  Rg1+ {[%clk 0:00:05]} 51. Kh3 {[%clk 0:00:04]}  Qf3+ {[%clk 0:00:05]} 52. Kh4 {[%clk 0:00:05]}  Qxf2+ {[%clk 0:00:05]} 53. Kh5 {[%clk 0:00:03]}  Qxh2+ {[%clk 0:00:05]} 54. Kg6 {[%clk 0:00:04]}  Qe2 {[%clk 0:00:03]} 55. Rc6+ {[%clk 0:00:04]}  Kd5 {[%clk 0:00:04]} 56. Nb4+ {[%clk 0:00:04]}  Ke4 {[%clk 0:00:04]} 57. Rd6 {[%clk 0:00:04]}  Rxg4+ {[%clk 0:00:03]} 58. Kf7 {[%clk 0:00:04]}  Nc5 {[%clk 0:00:03]} 59. Ke7 {[%clk 0:00:05]}  Qb5 {[%clk 0:00:02]} 60. Nd5 {[%clk 0:00:05]}  Qxb3 {[%clk 0:00:02]} 61. Nxf6+ {[%clk 0:00:05]}  Kf5 {[%clk 0:00:03]} 62. Rd5 {[%clk 0:00:04]}  Qb7+ {[%clk 0:00:02]} 63. Kf8 {[%clk 0:00:04]}  Kxf6 {[%clk 0:00:02]} 64. Rd6+ {[%clk 0:00:04]}  Ne6+ {[%clk 0:00:03]} 65. Rxe6+ {[%clk 0:00:04]}  Kxe6 {[%clk 0:00:03]} 66. Ke8 {[%clk 0:00:04]}  Qb8# {[%clk 0:00:04]} 0-1


[Site "https://www.chess.com"]

[Event "Titled Tuesday Blitz August 15 Late 2023"]
[White "Pinheiro, Iung Alicio de O."]
[Black "Jovic, Stanoje"]
[WhiteFideId "2104350"]
[BlackFideId "905020"]
[WhiteElo "2592"]
[BlackElo "2495"]
[Result "1-0"]
[Round "11"]
[TimeControl "180+1"]
[Date "2023.08.15"]
[WhiteClock "0:00:29"]
[BlackClock "0:00:00"]
[Board "43"]

1. d4 {[%clk 0:03:00]}  Nf6 {[%clk 0:02:59]} 2. c4 {[%clk 0:03:00]}  e6 {[%clk 0:02:59]} 3. Nc3 {[%clk 0:02:57]}  Bb4 {[%clk 0:02:58]} 4. e3 {[%clk 0:02:57]}  O-O {[%clk 0:02:57]} 5. Bd3 {[%clk 0:02:57]}  c5 {[%clk 0:02:56]} 6. a3 {[%clk 0:02:56]}  Bxc3+ {[%clk 0:02:55]} 7. bxc3 {[%clk 0:02:57]}  d5 {[%clk 0:02:54]} 8. cxd5 {[%clk 0:02:42]}  exd5 {[%clk 0:02:52]} 9. Ne2 {[%clk 0:02:41]}  b6 {[%clk 0:02:52]} 10. O-O {[%clk 0:02:41]}  Ba6 {[%clk 0:02:52]} 11. f3 {[%clk 0:02:36]}  Bxd3 {[%clk 0:02:50]} 12. Qxd3 {[%clk 0:02:36]}  Nc6 {[%clk 0:02:50]} 13. Ng3 {[%clk 0:02:32]}  Re8 {[%clk 0:02:48]} 14. Ra2 {[%clk 0:02:32]}  Rc8 {[%clk 0:02:48]} 15. Re2 {[%clk 0:02:32]}  Rc7 {[%clk 0:02:46]} 16. Bb2 {[%clk 0:02:27]}  Rd7 {[%clk 0:02:38]} 17. Rd1 {[%clk 0:02:24]}  Na5 {[%clk 0:02:30]} 18. e4 {[%clk 0:02:18]}  Nc4 {[%clk 0:02:21]} 19. e5 {[%clk 0:02:09]}  Rde7 {[%clk 0:02:16]} 20. Bc1 {[%clk 0:02:01]}  Nd7 {[%clk 0:02:10]} 21. f4 {[%clk 0:01:42]}  f6 {[%clk 0:01:47]} 22. Qf3 {[%clk 0:01:22]}  Nf8 {[%clk 0:01:33]} 23. Nf5 {[%clk 0:01:03]}  cxd4 {[%clk 0:01:27]} 24. Nxe7+ {[%clk 0:01:00]}  Rxe7 {[%clk 0:01:23]} 25. Rxd4 {[%clk 0:00:56]}  fxe5 {[%clk 0:01:12]} 26. Rxd5 {[%clk 0:00:49]}  Qe8 {[%clk 0:01:03]} 27. Qe4 {[%clk 0:00:43]}  b5 {[%clk 0:00:55]} 28. a4 {[%clk 0:00:32]}  Ng6 {[%clk 0:00:46]} 29. Rxb5 {[%clk 0:00:30]}  Nd6 {[%clk 0:00:45]} 30. Qd5+ {[%clk 0:00:30]}  Kh8 {[%clk 0:00:44]} 31. Qxd6 {[%clk 0:00:30]}  Rd7 {[%clk 0:00:00]} 32. Rb8 {[%clk 0:00:29]} 1-0


[Site "https://www.chess.com"]

[Event "Titled Tuesday Blitz August 15 Late 2023"]
[White "brm72"]
[Black "Caspi, Israel"]
[BlackFideId "2807394"]
[WhiteElo "2493"]
[BlackElo "2582"]
[Result "0-1"]
[Round "11"]
[TimeControl "180+1"]
[Date "2023.08.15"]
[WhiteClock "0:00:04"]
[BlackClock "0:01:09"]
[Board "44"]

1. e4 {[%clk 0:03:00]}  e5 {[%clk 0:02:57]} 2. Nf3 {[%clk 0:03:00]}  Nc6 {[%clk 0:02:57]} 3. d4 {[%clk 0:03:00]}  exd4 {[%clk 0:02:58]} 4. Nxd4 {[%clk 0:03:01]}  Nf6 {[%clk 0:02:58]} 5. Nxc6 {[%clk 0:03:01]}  bxc6 {[%clk 0:02:58]} 6. e5 {[%clk 0:03:01]}  Qe7 {[%clk 0:02:58]} 7. Qe2 {[%clk 0:03:01]}  Nd5 {[%clk 0:02:58]} 8. h4 {[%clk 0:03:02]}  d6 {[%clk 0:02:39]} 9. c4 {[%clk 0:03:00]}  Nb6 {[%clk 0:02:38]} 10. exd6 {[%clk 0:03:01]}  Qxe2+ {[%clk 0:02:37]} 11. Bxe2 {[%clk 0:03:02]}  cxd6 {[%clk 0:02:38]} 12. Bf3 {[%clk 0:03:02]}  Bd7 {[%clk 0:02:37]} 13. b3 {[%clk 0:02:59]}  O-O-O {[%clk 0:02:36]} 14. Nc3 {[%clk 0:02:59]}  d5 {[%clk 0:02:35]} 15. cxd5 {[%clk 0:02:48]}  Bb4 {[%clk 0:02:34]} 16. Bb2 {[%clk 0:02:46]}  Nxd5 {[%clk 0:02:34]} 17. Bxd5 {[%clk 0:02:43]}  cxd5 {[%clk 0:02:35]} 18. O-O-O {[%clk 0:02:43]}  Bc6 {[%clk 0:02:30]} 19. Ne2 {[%clk 0:02:32]}  f6 {[%clk 0:02:27]} 20. Nd4 {[%clk 0:02:32]}  Bd7 {[%clk 0:02:27]} 21. f3 {[%clk 0:02:29]}  Rhe8 {[%clk 0:02:26]} 22. a3 {[%clk 0:02:28]}  Bd6 {[%clk 0:02:25]} 23. h5 {[%clk 0:02:26]}  h6 {[%clk 0:02:24]} 24. g4 {[%clk 0:02:22]}  Kb7 {[%clk 0:02:23]} 25. Rhe1 {[%clk 0:02:21]}  Bf4+ {[%clk 0:02:18]} 26. Kc2 {[%clk 0:02:20]}  Be5 {[%clk 0:02:17]} 27. a4 {[%clk 0:02:14]}  Rc8+ {[%clk 0:02:17]} 28. Kd3 {[%clk 0:02:14]}  Red8 {[%clk 0:02:09]} 29. Rc1 {[%clk 0:02:12]}  Be8 {[%clk 0:02:09]} 30. Rxc8 {[%clk 0:02:11]}  Rxc8 {[%clk 0:02:10]} 31. Rc1 {[%clk 0:02:00]}  Rd8 {[%clk 0:02:08]} 32. Ba3 {[%clk 0:01:57]}  Bf7 {[%clk 0:02:04]} 33. Nf5 {[%clk 0:01:55]}  d4 {[%clk 0:01:56]} 34. b4 {[%clk 0:01:53]}  Bd5 {[%clk 0:01:49]} 35. Nxg7 {[%clk 0:01:13]}  Bxf3 {[%clk 0:01:48]} 36. Ne6 {[%clk 0:01:12]}  Rc8 {[%clk 0:01:47]} 37. Rxc8 {[%clk 0:01:08]}  Kxc8 {[%clk 0:01:48]} 38. Nxd4 {[%clk 0:01:09]}  Bxg4 {[%clk 0:01:48]} 39. Bc1 {[%clk 0:01:07]}  Bxh5 {[%clk 0:01:44]} 40. Bxh6 {[%clk 0:01:07]}  Be8 {[%clk 0:01:44]} 41. b5 {[%clk 0:01:05]}  Kb7 {[%clk 0:01:41]} 42. Be3 {[%clk 0:01:04]}  Bg6+ {[%clk 0:01:41]} 43. Kc4 {[%clk 0:01:04]}  Be4 {[%clk 0:01:42]} 44. Ne6 {[%clk 0:00:59]}  Bc2 {[%clk 0:01:39]} 45. Nc5+ {[%clk 0:00:57]}  Kc8 {[%clk 0:01:38]} 46. a5 {[%clk 0:00:57]}  f5 {[%clk 0:01:37]} 47. a6 {[%clk 0:00:57]}  f4 {[%clk 0:01:37]} 48. Bf2 {[%clk 0:00:56]}  f3 {[%clk 0:01:37]} 49. Ne6 {[%clk 0:00:53]}  Kb8 {[%clk 0:01:32]} 50. Nd8 {[%clk 0:00:53]}  Be4 {[%clk 0:01:31]} 51. Kc5 {[%clk 0:00:50]}  Bc7 {[%clk 0:01:27]} 52. Nc6+ {[%clk 0:00:41]}  Ka8 {[%clk 0:01:25]} 53. Kc4 {[%clk 0:00:16]}  Bb6 {[%clk 0:01:19]} 54. Nd4 {[%clk 0:00:13]}  Kb8 {[%clk 0:01:19]} 55. Bg3+ {[%clk 0:00:11]}  Kc8 {[%clk 0:01:19]} 56. Bf2 {[%clk 0:00:08]}  Kd7 {[%clk 0:01:19]} 57. Kc3 {[%clk 0:00:08]}  Kd6 {[%clk 0:01:18]} 58. Kc4 {[%clk 0:00:07]}  Bd5+ {[%clk 0:01:17]} 59. Kd3 {[%clk 0:00:07]}  Ke5 {[%clk 0:01:14]} 60. Bg3+ {[%clk 0:00:07]}  Kf6 {[%clk 0:01:14]} 61. Bf2 {[%clk 0:00:06]}  Kg5 {[%clk 0:01:14]} 62. Nxf3+ {[%clk 0:00:05]}  Bxf3 {[%clk 0:01:12]} 63. Bxb6 {[%clk 0:00:05]}  axb6 {[%clk 0:01:11]} 64. Kd4 {[%clk 0:00:06]}  Kf4 {[%clk 0:01:10]} 65. a7 {[%clk 0:00:07]}  Bb7 {[%clk 0:01:09]} 66. Kd3 {[%clk 0:00:04]}  Ke5 {[%clk 0:01:09]} 0-1


[Site "https://www.chess.com"]

[Event "Titled Tuesday Blitz August 15 Late 2023"]
[White "Daianu, Cristian-Clement"]
[Black "Graif, William"]
[WhiteFideId "1208926"]
[BlackFideId "2609835"]
[WhiteElo "2422"]
[BlackElo "2555"]
[Result "0-1"]
[Round "11"]
[TimeControl "180+1"]
[Date "2023.08.15"]
[WhiteClock "0:02:11"]
[BlackClock "0:00:20"]
[Board "47"]

1. e4 {[%clk 0:02:59]}  e5 {[%clk 0:02:59]} 2. Nf3 {[%clk 0:02:59]}  Bc5 {[%clk 0:03:00]} 3. Bc4 {[%clk 0:02:59]}  Nf6 {[%clk 0:03:00]} 4. d3 {[%clk 0:02:59]}  Nc6 {[%clk 0:02:58]} 5. c3 {[%clk 0:02:59]}  d6 {[%clk 0:02:56]} 6. Nbd2 {[%clk 0:02:59]}  O-O {[%clk 0:02:51]} 7. h3 {[%clk 0:02:59]}  a6 {[%clk 0:02:33]} 8. Bb3 {[%clk 0:02:59]}  Be6 {[%clk 0:02:16]} 9. Bc2 {[%clk 0:02:55]}  d5 {[%clk 0:02:01]} 10. Qe2 {[%clk 0:02:56]}  h6 {[%clk 0:01:50]} 11. g4 {[%clk 0:02:55]}  dxe4 {[%clk 0:01:45]} 12. dxe4 {[%clk 0:02:55]}  Nh7 {[%clk 0:01:25]} 13. Nf1 {[%clk 0:02:54]}  b5 {[%clk 0:01:20]} 14. b3 {[%clk 0:02:52]}  b4 {[%clk 0:01:12]} 15. Bd2 {[%clk 0:02:48]}  bxc3 {[%clk 0:01:08]} 16. Bxc3 {[%clk 0:02:49]}  Nd4 {[%clk 0:00:58]} 17. Nxd4 {[%clk 0:02:46]}  Bxd4 {[%clk 0:00:54]} 18. O-O-O {[%clk 0:02:46]}  Qg5+ {[%clk 0:00:38]} 19. Bd2 {[%clk 0:02:46]}  Qe7 {[%clk 0:00:39]} 20. Kb1 {[%clk 0:02:45]}  a5 {[%clk 0:00:37]} 21. Ng3 {[%clk 0:02:41]}  a4 {[%clk 0:00:35]} 22. Nf5 {[%clk 0:02:41]}  Bxf5 {[%clk 0:00:26]} 23. gxf5 {[%clk 0:02:40]}  Rfb8 {[%clk 0:00:20]} 24. Rhg1 {[%clk 0:02:27]}  Qa3 {[%clk 0:00:19]} 25. Bc1 {[%clk 0:02:22]}  Qxa2+ {[%clk 0:00:19]} 26. Kxa2 {[%clk 0:02:11]}  axb3+ {[%clk 0:00:20]} 27. Kb1 {[%clk 0:02:11]}  Ra1# {[%clk 0:00:20]} 0-1


[Site "https://www.chess.com"]

[Event "Titled Tuesday Blitz August 15 Late 2023"]
[White "Todorovic, Bojan"]
[Black "Poltorak, Sebastian"]
[WhiteFideId "917087"]
[BlackFideId "1199498"]
[WhiteElo "2440"]
[BlackElo "2552"]
[Result "1-0"]
[Round "11"]
[TimeControl "180+1"]
[Date "2023.08.15"]
[WhiteClock "0:01:26"]
[BlackClock "0:01:20"]
[Board "48"]

1. d4 {[%clk 0:02:48]}  d5 {[%clk 0:02:59]} 2. c4 {[%clk 0:02:47]}  c6 {[%clk 0:02:58]} 3. Nf3 {[%clk 0:02:46]}  e6 {[%clk 0:02:58]} 4. Nbd2 {[%clk 0:02:44]}  Nf6 {[%clk 0:02:57]} 5. g3 {[%clk 0:02:43]}  dxc4 {[%clk 0:02:56]} 6. Nxc4 {[%clk 0:02:42]}  Be7 {[%clk 0:02:39]} 7. Bg2 {[%clk 0:02:41]}  O-O {[%clk 0:02:39]} 8. O-O {[%clk 0:02:41]}  b5 {[%clk 0:02:33]} 9. Nce5 {[%clk 0:02:39]}  Bb7 {[%clk 0:02:31]} 10. Qc2 {[%clk 0:02:22]}  a6 {[%clk 0:02:30]} 11. Rd1 {[%clk 0:02:12]}  Qb6 {[%clk 0:02:31]} 12. Ng5 {[%clk 0:01:41]}  h6 {[%clk 0:02:19]} 13. Ngxf7 {[%clk 0:01:31]}  Rxf7 {[%clk 0:02:18]} 14. Qg6 {[%clk 0:01:31]}  Rf8 {[%clk 0:01:47]} 15. Bxh6 {[%clk 0:01:31]}  Ne8 {[%clk 0:01:40]} 16. Be4 {[%clk 0:01:28]}  Qxd4 {[%clk 0:01:20]} 17. Qh7# {[%clk 0:01:26]} 1-0


[Site "https://www.chess.com"]

[Event "Titled Tuesday Blitz August 15 Late 2023"]
[White "Polaczek, Richard"]
[Black "Postlmayer, Jakob"]
[WhiteFideId "200026"]
[BlackFideId "1643622"]
[WhiteElo "2396"]
[BlackElo "2548"]
[Result "0-1"]
[Round "11"]
[TimeControl "180+1"]
[Date "2023.08.15"]
[WhiteClock "0:00:39"]
[BlackClock "0:00:29"]
[Board "50"]

1. d4 {[%clk 0:02:58]}  d5 {[%clk 0:02:59]} 2. c4 {[%clk 0:02:56]}  c6 {[%clk 0:02:59]} 3. Nf3 {[%clk 0:02:54]}  Nf6 {[%clk 0:02:58]} 4. Nc3 {[%clk 0:02:54]}  dxc4 {[%clk 0:02:58]} 5. e3 {[%clk 0:02:54]}  b5 {[%clk 0:02:58]} 6. a4 {[%clk 0:02:52]}  b4 {[%clk 0:02:51]} 7. Nb1 {[%clk 0:02:51]}  Ba6 {[%clk 0:02:35]} 8. Ne5 {[%clk 0:02:44]}  e6 {[%clk 0:02:27]} 9. Nxc4 {[%clk 0:02:24]}  c5 {[%clk 0:02:23]} 10. Be2 {[%clk 0:02:17]}  Nc6 {[%clk 0:02:19]} 11. Ne5 {[%clk 0:01:46]}  Bxe2 {[%clk 0:02:11]} 12. Qxe2 {[%clk 0:01:44]}  Nxe5 {[%clk 0:02:11]} 13. dxe5 {[%clk 0:01:42]}  Nd7 {[%clk 0:02:11]} 14. f4 {[%clk 0:01:41]}  Be7 {[%clk 0:02:08]} 15. Nd2 {[%clk 0:01:40]}  O-O {[%clk 0:02:07]} 16. O-O {[%clk 0:01:40]}  Qc7 {[%clk 0:02:04]} 17. a5 {[%clk 0:01:34]}  f6 {[%clk 0:01:56]} 18. exf6 {[%clk 0:01:33]}  Nxf6 {[%clk 0:01:55]} 19. Nc4 {[%clk 0:01:33]}  Rad8 {[%clk 0:01:51]} 20. b3 {[%clk 0:01:26]}  Nd5 {[%clk 0:01:45]} 21. Bb2 {[%clk 0:01:24]}  Bf6 {[%clk 0:01:45]} 22. Be5 {[%clk 0:01:12]}  Bxe5 {[%clk 0:01:43]} 23. fxe5 {[%clk 0:01:12]}  Qe7 {[%clk 0:01:20]} 24. Qg4 {[%clk 0:01:10]}  h6 {[%clk 0:01:11]} 25. Rf3 {[%clk 0:01:09]}  Rxf3 {[%clk 0:01:09]} 26. gxf3 {[%clk 0:01:09]}  Rf8 {[%clk 0:01:06]} 27. Rd1 {[%clk 0:01:07]}  Qf7 {[%clk 0:00:52]} 28. Kg2 {[%clk 0:00:52]}  h5 {[%clk 0:00:34]} 29. Qe4 {[%clk 0:00:39]}  Nc3 {[%clk 0:00:29]} 0-1


[Site "https://www.chess.com"]

[Event "Titled Tuesday Blitz August 15 Late 2023"]
[White "Budrewicz, Krzysztof"]
[Black "Baghdasaryan, Vahe"]
[WhiteFideId "1127950"]
[BlackFideId "13303139"]
[WhiteElo "2545"]
[BlackElo "2434"]
[Result "1-0"]
[Round "11"]
[TimeControl "180+1"]
[Date "2023.08.15"]
[WhiteClock "0:01:50"]
[BlackClock "0:00:00"]
[Board "57"]

1. d4 {[%clk 0:03:00]}  d5 {[%clk 0:02:59]} 2. c3 {[%clk 0:03:01]}  Nf6 {[%clk 0:02:58]} 3. g3 {[%clk 0:03:01]}  Bf5 {[%clk 0:02:58]} 4. Bg2 {[%clk 0:03:02]}  e6 {[%clk 0:02:58]} 5. Nf3 {[%clk 0:03:02]}  Be7 {[%clk 0:02:58]} 6. O-O {[%clk 0:03:03]}  h6 {[%clk 0:02:58]} 7. Bf4 {[%clk 0:03:03]}  O-O {[%clk 0:02:55]} 8. Qb3 {[%clk 0:03:03]}  b6 {[%clk 0:02:55]} 9. Nbd2 {[%clk 0:03:03]}  Nbd7 {[%clk 0:02:52]} 10. a4 {[%clk 0:03:04]}  c5 {[%clk 0:02:51]} 11. a5 {[%clk 0:03:04]}  bxa5 {[%clk 0:02:45]} 12. Qa4 {[%clk 0:03:01]}  Qb6 {[%clk 0:02:37]} 13. Ra2 {[%clk 0:02:59]}  Bd8 {[%clk 0:01:59]} 14. Rfa1 {[%clk 0:02:48]}  a6 {[%clk 0:01:39]} 15. h3 {[%clk 0:02:46]}  Qb5 {[%clk 0:01:33]} 16. e3 {[%clk 0:02:40]}  Re8 {[%clk 0:01:05]} 17. Bf1 {[%clk 0:02:40]}  Qxa4 {[%clk 0:00:54]} 18. Rxa4 {[%clk 0:02:41]}  c4 {[%clk 0:00:51]} 19. g4 {[%clk 0:02:38]}  Bc2 {[%clk 0:00:50]} 20. R4a2 {[%clk 0:02:37]}  g5 {[%clk 0:00:45]} 21. Bg3 {[%clk 0:02:35]}  Ne4 {[%clk 0:00:40]} 22. Nxe4 {[%clk 0:02:35]}  Bxe4 {[%clk 0:00:41]} 23. Nd2 {[%clk 0:02:32]}  Bc2 {[%clk 0:00:36]} 24. Be2 {[%clk 0:02:32]}  Nf6 {[%clk 0:00:24]} 25. f3 {[%clk 0:02:32]}  a4 {[%clk 0:00:20]} 26. Bd1 {[%clk 0:02:28]}  Bxd1 {[%clk 0:00:16]} 27. Rxd1 {[%clk 0:02:28]}  a5 {[%clk 0:00:16]} 28. Rxa4 {[%clk 0:02:27]}  Re7 {[%clk 0:00:16]} 29. Rda1 {[%clk 0:02:26]}  Rb7 {[%clk 0:00:16]} 30. R1a2 {[%clk 0:02:27]}  Nd7 {[%clk 0:00:14]} 31. e4 {[%clk 0:02:22]}  Rb5 {[%clk 0:00:09]} 32. Bd6 {[%clk 0:02:19]}  Nb6 {[%clk 0:00:05]} 33. R4a3 {[%clk 0:02:18]}  Nc8 {[%clk 0:00:05]} 34. Bc5 {[%clk 0:02:18]}  dxe4 {[%clk 0:00:05]} 35. fxe4 {[%clk 0:02:17]}  Be7 {[%clk 0:00:05]} 36. Bxe7 {[%clk 0:02:16]}  Nxe7 {[%clk 0:00:06]} 37. Nxc4 {[%clk 0:02:17]}  f5 {[%clk 0:00:05]} 38. gxf5 {[%clk 0:02:11]}  exf5 {[%clk 0:00:06]} 39. Nd6 {[%clk 0:02:11]}  Rb6 {[%clk 0:00:04]} 40. e5 {[%clk 0:02:12]}  Rba6 {[%clk 0:00:02]} 41. c4 {[%clk 0:02:12]}  Nc6 {[%clk 0:00:02]} 42. Nb5 {[%clk 0:02:08]}  Nb4 {[%clk 0:00:02]} 43. Nc7 {[%clk 0:02:04]}  R8a7 {[%clk 0:00:02]} 44. Nxa6 {[%clk 0:02:04]}  Nxa2 {[%clk 0:00:02]} 45. Rxa2 {[%clk 0:02:02]}  Rxa6 {[%clk 0:00:01]} 46. Kf2 {[%clk 0:02:02]}  Kf7 {[%clk 0:00:02]} 47. Ke3 {[%clk 0:02:02]}  Ke6 {[%clk 0:00:03]} 48. b4 {[%clk 0:02:02]}  a4 {[%clk 0:00:03]} 49. b5 {[%clk 0:02:02]}  Ra5 {[%clk 0:00:03]} 50. b6 {[%clk 0:02:01]}  Kd7 {[%clk 0:00:04]} 51. d5 {[%clk 0:01:59]}  Ra6 {[%clk 0:00:03]} 52. c5 {[%clk 0:01:59]}  Ra5 {[%clk 0:00:04]} 53. Kd4 {[%clk 0:02:00]}  a3 {[%clk 0:00:03]} 54. e6+ {[%clk 0:02:00]}  Kc8 {[%clk 0:00:03]} 55. e7 {[%clk 0:02:00]}  Kd7 {[%clk 0:00:03]} 56. d6 {[%clk 0:01:55]}  f4 {[%clk 0:00:03]} 57. Kd5 {[%clk 0:01:51]}  Rb5 {[%clk 0:00:01]} 58. Rxa3 {[%clk 0:01:50]}  Rb4 {[%clk 0:00:00]} 59. Ra7+ {[%clk 0:01:50]} 1-0


[Site "https://www.chess.com"]

[Event "Titled Tuesday Blitz August 15 Late 2023"]
[White "Osmak, Yuliia"]
[Black "Hirneise, Jens"]
[WhiteFideId "14101602"]
[BlackFideId "24614734"]
[WhiteElo "2518"]
[BlackElo "2475"]
[Result "1-0"]
[Round "11"]
[TimeControl "180+1"]
[Date "2023.08.15"]
[WhiteClock "0:01:53"]
[BlackClock "0:00:18"]
[Board "58"]

1. e4 {[%clk 0:03:00]}  c6 {[%clk 0:02:58]} 2. d4 {[%clk 0:02:59]}  d5 {[%clk 0:02:59]} 3. Nc3 {[%clk 0:02:59]}  dxe4 {[%clk 0:02:57]} 4. f3 {[%clk 0:03:00]}  e3 {[%clk 0:02:56]} 5. f4 {[%clk 0:02:59]}  g6 {[%clk 0:02:52]} 6. Nf3 {[%clk 0:02:58]}  Bg7 {[%clk 0:02:51]} 7. Bc4 {[%clk 0:02:58]}  Nf6 {[%clk 0:02:49]} 8. Bxe3 {[%clk 0:02:58]}  Nd5 {[%clk 0:02:44]} 9. Qe2 {[%clk 0:02:56]}  O-O {[%clk 0:02:41]} 10. h4 {[%clk 0:02:53]}  h5 {[%clk 0:02:37]} 11. Ne5 {[%clk 0:02:51]}  Be6 {[%clk 0:02:15]} 12. Nxd5 {[%clk 0:02:48]}  Bxd5 {[%clk 0:02:15]} 13. Bd3 {[%clk 0:02:48]}  Nd7 {[%clk 0:02:01]} 14. O-O-O {[%clk 0:02:48]}  Qa5 {[%clk 0:01:49]} 15. Nxd7 {[%clk 0:02:45]}  Rfd8 {[%clk 0:01:42]} 16. Ne5 {[%clk 0:02:41]}  Qxa2 {[%clk 0:01:42]} 17. c4 {[%clk 0:02:37]}  Be6 {[%clk 0:01:37]} 18. f5 {[%clk 0:02:36]}  gxf5 {[%clk 0:00:59]} 19. Qxh5 {[%clk 0:02:32]}  Bxe5 {[%clk 0:00:52]} 20. dxe5 {[%clk 0:02:33]}  Rxd3 {[%clk 0:00:40]} 21. Rxd3 {[%clk 0:02:28]}  Qa1+ {[%clk 0:00:37]} 22. Kc2 {[%clk 0:02:27]}  Qxh1 {[%clk 0:00:36]} 23. Qg5+ {[%clk 0:02:24]}  Kf8 {[%clk 0:00:32]} 24. Qh6+ {[%clk 0:02:25]}  Kg8 {[%clk 0:00:31]} 25. Bf2 {[%clk 0:02:19]}  f4 {[%clk 0:00:30]} 26. Qg5+ {[%clk 0:02:10]}  Kh7 {[%clk 0:00:23]} 27. Qh5+ {[%clk 0:02:03]}  Kg7 {[%clk 0:00:23]} 28. Qg5+ {[%clk 0:02:03]}  Kh7 {[%clk 0:00:23]} 29. Qxf4 {[%clk 0:02:03]}  Rg8 {[%clk 0:00:20]} 30. g3 {[%clk 0:01:56]}  Qh3 {[%clk 0:00:18]} 31. Be3 {[%clk 0:01:53]}  Bf5 {[%clk 0:00:18]} 32. Qh6# {[%clk 0:01:53]} 1-0


[Site "https://www.chess.com"]